Cogmind - Beta 13 @@@ ROGUE MODE // 2024.07.11 @ 10:25:03 Player: ThatBishHoly Result: Destroyed by S-10 Pest with Light Assault Rifle Performance ------------- Evolutions (0) 0 Regions Visited (1) 200 Robots Destroyed (6) 30 Value Destroyed (80) 80 Prototype IDs (0) 0 Alien Tech Used (0) 0 Bonus (0) 0 TOTAL SCORE: 310 Bonus ------- None Cogmind --------- Core Integrity 0/250 Matter 290/300 Energy 88/100 System Corruption 0% Temperature Cool (9) Movement Rolling (100) Location -10/Materials Parts ------- > --- POWER (1) -------- (None) > --- PROPULSION (2) --- Compact Wheel > --- UTILITY (2) ------ Small Storage Unit > --- WEAPON (2) ------- (None) > --- INVENTORY (8) ---- (None) Peak State ------------ > --- POWER ------------ Ion Engine > --- PROPULSION ------- Light Treads Light Treads > --- UTILITY ---------- Small Storage Unit Tractor Beam > --- WEAPON ----------- Light Assault Rifle Light Assault Rifle > --- INVENTORY -------- EM Pulse Gun [Rating: 7] Favorites ----------- Power Ion Engine Engine Ion Engine Propulsion Light Treads Treads Light Treads Wheel Compact Wheel Utility Small Storage Unit Device Tractor Beam Storage Small Storage Unit Weapon Light Assault Rifle Energy Gun EM Pulse Gun Ballistic Gun Light Assault Rifle Build | -11 -10 ------- Run | Yrd Mat Slots Evolved . | . . Power . | . . Propulsion . | . . Utility . | . . Weapon . | . . Parts Attached 10 | 6 4 Power 1 | 1 . Engine 1 | 1 . Core . | . . Reactor . | . . Propulsion 3 | 2 1 Treads 2 | 2 . Leg . | . . Wheel 1 | . 1 Hover . | . . Flight . | . . Utility 2 | 1 1 Device 1 | . 1 Storage 1 | 1 . Processor . | . . Hackware . | . . Protection . | . . Artifact . | . . Weapon 4 | 2 2 Energy Gun 2 | 1 1 Energy Cannon . | . . Ballistic Gun 2 | 1 1 Ballistic Cannon . | . . Launcher . | . . Special Weapon . | . . Impact Weapon . | . . Slashing Weapon . | . . Piercing Weapon . | . . Special Melee Weapon . | . . Unidentified Prototypes . | . . Parts Lost 7 | . 7 Power 1 | . 1 Propulsion 2 | . 2 Utility 1 | . 1 Weapon 3 | . 3 Highest Loss Streak 6 | . 6 To Critical Strikes . | . . Average Slot Usage (%) 78 | . 78 Engine 12 | . 12 Treads 24 | . 24 Storage 14 | . 14 Energy Gun 6 | . 6 Ballistic Gun 19 | . 19 Naked Turns . | . . Heaviest Build 13 | 13 13 Greatest Support 40 | 40 40 Greatest Overweight (x) 1 | . 1 Average Overweight (x) . | . . Largest Inventory Capacity 8 | 8 8 Average Capacity 7 | 7 8 Most Carried 5 | 5 2 Average Carried . | . . Final Capacity 8 | 8 8 Final Carried . | . . Class Distribution -------------------- 100% | Mutant Dominant Class ---------------- Mutant | -10/Materials Resources | -11 -10 ----------- Run | Yrd Mat Matter Collected 322 | 178 144 Remotely 22 | . 22 Salvage Created 164 | . 164 Parts 8 | . 8 Haulers Intercepted . | . . Recyclers Shooed . | . . Parts Field Recycled . | . . Retrieved Matter . | . . Parts Self-Destructed . | . . Prevented . | . . Kills | -11 -10 ------- Run | Yrd Mat Combat Hostiles Destroyed 5 | . 5 Melee 1 | . 1 Guns 1 | . 1 AOE 3 | . 3 Classes Destroyed 3 | . 3 Recycler 1 | . 1 Swarmer 4 | . 4 Grunt 1 | . 1 Best Kill Streak 3 | . 3 Combat Bots Only 3 | . 3 Max Kills in Single Turn 3 | . 3 Gunslinging . | . . Exploded 3 | . 3 Melee 1 | . 1 Uniques/NPCs Destroyed . | . . Combat | -11 -10 -------- Run | Yrd Mat Hostile Shots Fired 105 | . 105 Missed 26 | . 26 Damage Taken 908 | . 908 Core 255 | . 255 Absorbed by Shields . | . . Core Remaining (%) 100 | 100 . Volleys Fired 24 | . 24 Largest 2 | . 2 Hottest 60 | . 60 Shots Fired 47 | . 47 Gun 47 | . 47 Cannon . | . . Launcher . | . . Special . | . . Kinetic 43 | . 43 Thermal . | . . Explosive . | . . Electromagnetic 4 | . 4 Robot Hit Streak 17 | . 17 Robot Miss Streak 3 | . 3 Penetration Max . | . . Secondary Targets . | . . Shots Hit Robots 37 | . 37 Core Hits 9 | . 9 Critical Kills . | . . Critical Parts Destroyed . | . . Critical Strikes 1 | . 1 Corrupt 1 | . 1 Melee Attacks . | . . Impact . | . . Slashing . | . . Piercing . | . . Sneak Attacks . | . . Combat Hostiles . | . . Follow-up Attacks . | . . Damage Inflicted 448 | . 448 Guns 303 | . 303 Cannons . | . . Explosions 98 | . 98 Melee . | . . Ramming 47 | . 47 Kinetic 278 | . 278 Thermal 98 | . 98 Explosive . | . . Electromagnetic 25 | . 25 Impact . | . . Slashing . | . . Piercing . | . . Highest Corruption . | . . Average Corruption . | . . Corruption Purged . | . . Corruption Blocked . | . . Overload Shots . | . . Overflow Damage . | . . Projectiles . | . . Explosions . | . . Melee . | . . Knockbacks . | . . Impact . | . . Kinetic . | . . Secondary . | . . Self-Inflicted Damage 29 | . 29 Shots 1 | . 1 Rammed 20 | . 20 Targets Rammed 21 | . 21 Kicked . | . . Crushed 1 | . 1 Highest Temperature 52 | . 52 Average Temperature 13 | . 13 Received Heat Transfer 321 | . 321 Siege Activations . | . . Robots Corrupted . | . . Combat Hostiles . | . . Parts Fried . | . . Impact Corruptions . | . . Robots Melted . | . . Combat Hostiles . | . . Parts Melted . | . . Heat Transferred 50 | . 50 Parts Sabotaged . | . . Parts Stolen . | . . Parts Stripped . | . . Power Chain Reactions 1 | . 1 Alert | -11 -10 ------- Run | Yrd Mat Peak Influence 222 | . 222 Initial . | . . Average 67 | . 79 Maximum Alert Level 1 | . 1 Low Security (%) 96 | 100 95 Level 1 3 | . 4 Level 2 . | . . Level 3 . | . . Level 4 . | . . Level 5 . | . . High Security . | . . Max Security . | . . Squads Dispatched . | . . Investigation . | . . Extermination . | . . Reinforcement . | . . Assault . | . . Garrison . | . . Intercept . | . . Searches Triggered . | . . Construction Impeded . | . . Haulers Reinforced . | . . Active Scanning Responses . | . . Cargo Convoy Interrupts . | . . Stealth | -11 -10 --------- Run | Yrd Mat Distress Signals 1 | . 1 Communications Jammed . | . . Distress Signals . | . . Times Spotted 14 | . 14 Peak Tracking Total 4 | . 4 Tactical Retreats 4 | . 4 Traps | -11 -10 ------- Run | Yrd Mat Traps Triggered . | . . Indirectly . | . . Trap Hack Attempts . | . . Triggered . | . . Disarmed . | . . Reprogrammed . | . . Reused . | . . Traps Extracted . | . . Installed . | . . Triggered . | . . Machines | -11 -10 ---------- Run | Yrd Mat Machines Disabled . | . . Max in Single Turn . | . . Machines Repaired . | . . Machines Dismantled . | . . Machines Sabotaged . | . . Overloaded Fab Kills . | . . Hacking | -11 -10 --------- Run | Yrd Mat Machines Accessed 3 | . 3 Terminals 3 | . 3 Fabricators . | . . Repair Stations . | . . Recycling Units . | . . Scanalyzers . | . . Garrison Access . | . . Total Hacks 9 | . 9 Successful 5 | . 5 Failed 4 | . 4 Catastrophic . | . . Database Lockouts . | . . Manual . | . . Terminals 9 | . 9 Fabricators . | . . Repair Stations . | . . Recycling Units . | . . Scanalyzers . | . . Garrison Access . | . . Terminal Hacks 5 | . 5 Emergency Access Points 1 | . 1 Locate Traps 2 | . 2 Hauler Manifests 1 | . 1 Zone Layout 1 | . 1 Fabricator Hacks . | . . Repair Station Hacks . | . . Recycling Unit Hacks . | . . Scanalyzer . | . . Garrison Access Hacks . | . . Unauthorized Hacks . | . . Terminals . | . . Fabricators . | . . Repair Stations . | . . Recycling Units . | . . Scanalyzers . | . . Garrison Access . | . . Data Cores Recovered . | . . Used . | . . Hacking Detections 1 | . 1 Full Trace Events . | . . Feedback Events . | . . Feedback Blocked . | . . Robot Schematics Acquired . | . . Robots Built . | . . Authchips . | . . Time . | . . Total Robot Build Rating . | . . Part Schematics Acquired . | . . Parts Built . | . . Authchips . | . . Time . | . . Total Part Build Rating . | . . Parts Repaired . | . . Time . | . . Parts Recycled . | . . Recycled Matter . | . . Retrieved Matter . | . . Retrieved Components . | . . Parts Scanalyzed . | . . Part Schematics Acquired . | . . Parts Damaged . | . . Bothacking | -11 -10 ------------ Run | Yrd Mat Used RIF Installer . | . . Robots Hacked . | . . Non-combat . | . . Combat . | . . Robot Hacks Applied . | . . Relay Couplers Released . | . . Fabnet Peak Effective % . | . . Robots Rewired . | . . Allies Hacked . | . . Hacks Repelled . | . . Allies | -11 -10 -------- Run | Yrd Mat Total Allies . | . . Largest Group . | . . Highest-Rated Group . | . . Highest-Rated Ally . | . . Total Orders . | . . Ally Attacks . | . . Total Damage . | . . Kills . | . . Allies Corrupted . | . . Allies Melted . | . . Intel | -11 -10 ------- Run | Yrd Mat Robot Analysis Total . | . . Derelict Logs Recovered . | . . Drone Launches . | . . Drone Recoveries . | . . Exploration | -11 -10 ------------- Run | Yrd Mat Turns Passed 373 | 57 316 Spaces Moved 169 | 37 132 Core 22 | 11 11 Treads 145 | 26 119 Legs . | . . Wheels 2 | . 2 Hover . | . . Flight . | . . Fastest Speed 50 | 50 100 Average Speed 148 | 127 154 Slowest Speed 160 | 160 160 Overloaded Moves . | . . Propulsion Burnouts . | . . Robots Hopped . | . . Cave-ins Triggered . | . . Exploration Rate (%) 13 | 5 21 Regions Visited 1 Branch Regions . Pre-discovered Areas . | . . Known Exits Taken . | . . Unknown Exits Taken 1 | 1 . Scrap Searched . | . . Spaces Dug . | . . Terrain Destroyed 2 | . 2 Melee . | . . Projectile . | . . AOE 2 | . 2 Terrain Rammed . | . . Walls Destroyed . | . . Machines Disabled . | . . Actions | -11 -10 --------- Run | Yrd Mat Total 247 | 47 200 Wait 16 | . 16 Move 168 | 36 132 Hop . | . . Pick Up 8 | 5 3 Fast Attach 1 | 1 . Attach 8 | 5 3 Detach . | . . Swap 1 | . 1 Drop . | . . Fire 24 | . 24 Melee . | . . Ram 11 | . 11 Kick . | . . Crush 10 | . 10 Escape Stasis . | . . Rewire . | . . Trap . | . . Miscellaneous . | . . Route ------- -11/Scrapyard -10/Materials History --------- Turn | Location | Event 9 | -11/Scrapyard | Discovered new exit (range 16) 58 | -11/Scrapyard | Entered Materials 307 | -10/Materials | Build established: Mutant 347 | -10/Materials | Core integrity fell below 50% 364 | -10/Materials | Core integrity fell below 20% 374 | -10/Materials | Destroyed by S-10 Pest with Light Assault Rifle Last Messages --------------- 00308_ Slammed into G-47 Trooper. 00321_ Slammed into S-10 Pest. 00322_ Crushed S-10 Pest. 00322_ S-10 Pest destroyed. 00326_ Slammed into G-47 Trooper. 00335_ Acquired 2 matter. 00337_ Ion Engine destroyed. 00337_ Lgt. Assault Rifle destroyed. 00339_ Lgt. Treads destroyed. 00340_ Acquired 4 matter. 00340_ Lgt. Treads destroyed. 00345_ EM Pulse Gun destroyed. 00349_ Slammed into G-47 Trooper. 00350_ Lgt. Assault Rifle destroyed. 00351_ Slammed into G-47 Trooper. 00356_ K-01 Serf collects debris. 00357_ Slammed into G-47 Trooper. 00360_ K-01 Serf cleans the Material Compactor. 00365_ Slammed into K-01 Serf. 00371_ Acquired Com. Wheel. Map ----- +----------------------------------------------------+ | | | | | | | | | | | ####?????????????????????????????????????????????? | | #?????????????????????????????????????????????? | | + #???????????????????????????????????? | | # #???????????????????????????????????? | | # #???????????????????????????????????? | | #####+############# ?????????????????????????????? | | ????????????????????????????? | | ^^ ????????????????????????????? | | ^^ ????????????????????????????? | | #####+######/#####???????????????????????????????? | | # # ##???????????????????????????????? | | # # ##???????????????????????????????? | | # "" #" """##???????????????????????????????? | | # T" #T """##???????????????????????????????? | | # "" #" """##???????????????????????????????? | | # # ##???????????????????????????????? | | #######+##+#######???????????????????????????????? | | "T" # #??#############??????????????????????? | | # #??# """ #??????????????????????? | | # #??# """"" #??????????????????????? | | # #??# """"" s@#??????????????????????? | | ####+#####%#### """""s + ???????????????????? | | #### * %%%%%%/% """ # #??????????????????? | | # %*######## m % #? ##??????????????????? | | # #??????# g #??#???????????????????? | | # ####################??????????????????????? | | + # """ """ "???????????????????????????????? | | # + """ """ ""??????????????????????????????? | | # # """ """ """ #???????????????????????????? | | # # #???????????????????????????? | | # # #???????????????????????????? | | #### + ! #???????????????????????????? | | + ###############???????????????????????????? | | ???# #?????????????????????????????????????????? | | ???# #?????????????????????????????????????????? | | ???# ?????????????????????????????????????????? | | ???# ?????????????????????????????????????????? | | ???# ?????????????????????????????????????????? | | ???######????????????????????????????????????????? | | ?????????????????????????????????????????????????? | | ?????????????????????????????????????????????????? | | ?????????????????????????????????????????????????? | | ?????????????????????????????????????????????????? | | ?????????????????????????????????????????????????? | | ?????????????????????????????????????????????????? | +----------------------------------------------------+ Best States ------------- Heat Dissipation 25 Energy Generation 10 Energy Capacity 250 Matter Stores 300 Matter Capacity 300 Sight Range 16 Terrain Scan Density 10 Evasion (%) 50 Recoil Reduction 2 Item Schematics ----------------- None Robot Schematics ------------------ None Fabricated ------------ Nothing Alien Tech Used ----------------- None Achievements -------------- None Challenges ------------ None Game ------ Seed BlastTargetBroadsword Manual? 0 Play Time 00:07:08 Cumulative 51.5 hours Start 2024.07.11 @ 10:20:55 End 2024.07.11 @ 10:25:03 Sessions 1 Manual Loads 0 Difficulty Rogue Special Mode None Game No. 140 Rogue 140 Adventurer 0 Explorer 0 Win Type - Total 0 Types 0/0/0/0/0/0/0/0/0 Lore% 22 Gallery% 40 Achievement% 26 Wizard Run 0 Options --------- Layout 0 ASCII 0 Keyboard 0 Movement Mouse Keybinds 0 Fullscreen 1 Font 12/Smallcaps Map View 38x28 Zoom Use 94% Tactical HUD 1 Map Filters NONE Filters NONE Steam SD RUN: 870f2b77-6a39-439d-adca-c510725aee43